[Event "European Womens-ch 2025"]
[Site "Rhodes"]
[Date "2025.04.05"]
[Round "6.22"]
[White "Gaboyan, Susanna"]
[Black "Antolak, Julia"]
[Result "1-0"]
[Annotator "ChessBase"]
[ECO "B22"]
[WhiteElo "2200"]
[BlackElo "2314"]
[PlyCount "95"]
[EventDate "2025.03.29"]
[EventType "swiss"]
[EventCountry "GRE"]
[SourceTitle "playchess.com"]
[Source "ChessBase"]
[SourceQuality "1"]
[TimeControl "40/5400+30:1800+30"]

1. e4 {[%emt 0:00:04]} c5 {[%emt 0:00:44]} 2. c3 {[%emt 0:00:55]} d5 {[%emt 0:00:06]} 3. exd5 {[%emt 0:00:11]} Nf6 {[%emt 0:00:07]} 4. Bb5+ {[%emt 0:03:13]} Nbd7 {[%emt 0:00:33]} 5. c4 {[%emt 0:03:11]} a6 {[%emt 0:01:57]} 6. Ba4 {[%emt 0:04:03]} b5 {[%emt 0:01:07]} 7. cxb5 {[%emt 0:00:37]} Nxd5 {[%emt 0:00:15]} 8. Nc3 {[%emt 0:04:14]} e6 {[%emt 0:09:19]} 9. Nf3 {[%emt 0:14:10]} N5b6 {[%emt 0:09:17]} 10. Bc2 {[%emt 0:14:23]} axb5 {[%emt 0:00:34]} 11. Nxb5 {[%emt 0:00:09]} Ba6 {[%emt 0:00:13]} 12. Nc3 {[%emt 0:00:06]} Be7 {[%emt 0:03:32]} 13. d3 {[%emt 0:03:54]} O-O {[%emt 0:02:51]} 14. O-O {[%emt 0:02:50]} Nd5 {[%emt 0:05:34]} 15. Nxd5 {[%emt 0:02:45]} exd5 {[%emt 0:00:06]} 16. Re1 {[%emt 0:00:22]} d4 {[%emt 0:03:44]} 17. b4 {[%emt 0:09:12]} cxb4 {[%emt 0:13:17]} 18. Bb2 {[%emt 0:00:20]} Bf6 {[%emt 0:02:02]} 19. Bxd4 {[%emt 0:00:24]} Bxd4 {[%emt 0:03:34]} 20. Nxd4 {[%emt 0:00:08]} Qf6 {[%emt 0:00:51]} 21. Nf3 {[%emt 0:06:43]} Nc5 {[%emt 0:04:18]} 22. d4 {[%emt 0:02:16]} Ne6 {[%emt 0:00:21]} 23. Be4 {[%emt 0:04:20]} Rad8 {[%emt 0:03:14]} 24. d5 {[%emt 0:02:41]} Nc5 {[%emt 0:02:24]} 25. Qc2 {[%emt 0:03:18]} Nxe4 {[%emt 0:01:08]} 26. Qxe4 {[%emt 0:00:04]} Bb7 {[%emt 0:00:17]} 27. Rad1 {[%emt 0:01:56]} g6 {[%emt 0:02:20]} 28. Rd3 {[%emt 0:06:16]} Qd6 {[%emt 0:03:39]} 29. Red1 {[%emt 0:00:15]} Rfe8 {[%emt 0:02:33]} 30. Qd4 {[%emt 0:01:35]} Re2 {[%emt 0:03:19]} 31. h4 {[%emt 0:03:48]} Rxa2 {[%emt 0:03:43]} 32. Ng5 {[%emt 0:01:32]} Ra6 {[%emt 0:06:11]} 33. Ne4 {[%emt 0:02:20]} Qe7 {[%emt 0:01:16]} 34. Qc4 {[%emt 0:02:53]} Qxh4 {[%emt 0:08:30]} 35. Qxb4 {[%emt 0:00:15]} Bc8 {[%emt 0:01:53]} 36. Rd4 {[%emt 0:01:13]} Qh6 {[%emt 0:02:36]} 37. Qe7 {[%emt 0:00:37]} Qf8 {[%emt 0:00:21]} 38. d6 {[%emt 0:00:41]} Bf5 {[%emt 0:00:53]} 39. Nf6+ {[%emt 0:01:19]} Kh8 {[%emt 0:00:35]} 40. Qe5 {[%emt 0:00:00]} Qg7 {[%emt 0:00:00]} 41. g4 {[%emt 0:07:55]} Bc2 {[%emt 0:03:36]} 42. Re1 {[%emt 0:00:17]} Ra5 {[%emt 0:04:15]} 43. Qxa5 {[%emt 0:05:03]} Qxf6 {[%emt 0:00:07]} 44. g5 {[%emt 0:00:03]} Qxd4 {[%emt 0:01:21]} 45. Qxd8+ {[%emt 0:00:05]} Kg7 {[%emt 0:00:06]} 46. Qf6+ {[%emt 0:00:04]} Qxf6 {[%emt 0:00:05]} 47. gxf6+ {[%emt 0:00:03]} Kxf6 {[%emt 0:00:08]} 48. d7 {[%emt 0:00:04]} 1-0

[Event "European Womens-ch 2025"]
[Site "Rhodes"]
[Date "2025.04.05"]
[Round "6.23"]
[White "Zhukova, Natalia"]
[Black "Jarocka, Liwia"]
[Result "1/2-1/2"]
[Annotator "ChessBase"]
[ECO "D27"]
[WhiteElo "2306"]
[BlackElo "2231"]
[PlyCount "114"]
[EventDate "2025.03.29"]
[EventType "swiss"]
[EventCountry "GRE"]
[SourceTitle "playchess.com"]
[Source "ChessBase"]
[SourceQuality "1"]
[TimeControl "40/5400+30:1800+30"]

1. Nf3 {[%emt 0:00:47]} d5 {[%emt 0:00:12]} 2. e3 {[%emt 0:00:31]} Nf6 {[%emt 0:00:05]} 3. c4 {[%emt 0:00:17]} e6 {[%emt 0:00:05]} 4. Nc3 {[%emt 0:00:14]} dxc4 {[%emt 0:01:03]} 5. Bxc4 {[%emt 0:00:20]} a6 {[%emt 0:00:03]} 6. d4 {[%emt 0:02:30]} c5 {[%emt 0:01:02]} 7. O-O {[%emt 0:00:40]} b5 {[%emt 0:00:28]} 8. Bb3 {[%emt 0:06:09]} Bb7 {[%emt 0:01:35]} 9. e4 {[%emt 0:13:44]} cxd4 {[%emt 0:02:28]} 10. Nxd4 {[%emt 0:00:53]} Nc6 {[%emt 0:00:25]} 11. Nxc6 {[%emt 0:03:41]} Qxd1 {[%emt 0:00:46]} 12. Rxd1 {[%emt 0:00:22]} Bxc6 {[%emt 0:00:04]} 13. f3 {[%emt 0:00:53]} Bc5+ {[%emt 0:01:19]} 14. Kf1 {[%emt 0:00:13]} Ke7 {[%emt 0:06:29]} 15. Bf4 {[%emt 0:03:42]} Rhc8 {[%emt 0:06:34]} 16. Rac1 {[%emt 0:02:03]} Ba7 {[%emt 0:05:23]} 17. Ne2 {[%emt 0:07:31]} Bb7 {[%emt 0:07:29]} 18. Bd6+ {[%emt 0:14:55]} Ke8 {[%emt 0:00:24]} 19. Nf4 {[%emt 0:02:40]} Be3 {[%emt 0:04:53]} 20. Rxc8+ {[%emt 0:01:31]} Rxc8 {[%emt 0:01:21]} 21. Ke2 {[%emt 0:00:46]} Bc5 {[%emt 0:03:02]} 22. Bxc5 {[%emt 0:02:54]} Rxc5 {[%emt 0:00:14]} 23. Nd3 {[%emt 0:00:21]} Rc7 {[%emt 0:00:35]} 24. a4 {[%emt 0:04:08]} bxa4 {[%emt 0:09:31]} 25. Bxa4+ {[%emt 0:00:34]} Ke7 {[%emt 0:00:04]} 26. b4 {[%emt 0:01:26]} Bc8 {[%emt 0:02:50]} 27. Ra1 {[%emt 0:02:35]} Nd7 {[%emt 0:08:09]} 28. Kd2 {[%emt 0:11:00]} Nb6 {[%emt 0:01:03]} 29. Bb3 {[%emt 0:00:07]} Nd7 {[%emt 0:01:03]} 30. Ra5 {[%emt 0:02:08]} Nb8 {[%emt 0:02:54]} 31. Ba4 {[%emt 0:02:13]} Rc4 {[%emt 0:03:21]} 32. Bb3 {[%emt 0:03:26]} Rc7 {[%emt 0:00:27]} 33. Ba4 {[%emt 0:00:13]} Rc4 {[%emt 0:00:05]} 34. b5 {[%emt 0:09:17]} axb5 {[%emt 0:13:08]} 35. Ra7+ {[%emt 0:00:19]} Kd8 {[%emt 0:00:07]} 36. Bxb5 {[%emt 0:00:02]} Rc7 {[%emt 0:00:06]} 37. Ra8 {[%emt 0:02:05]} Rb7 {[%emt 0:01:57]} 38. Ba4 {[%emt 0:00:09]} Nd7 {[%emt 0:02:08]} 39. Bxd7 {[%emt 0:00:45]} Rxd7 {[%emt 0:00:06]} 40. Ke3 {[%emt 0:00:00]} Rc7 {[%emt 0:00:00]} 41. h4 {[%emt 0:02:32]} Ke7 {[%emt 0:01:33]} 42. g4 {[%emt 0:02:38]} f6 {[%emt 0:03:27]} 43. e5 {[%emt 0:03:53]} Kf7 {[%emt 0:01:40]} 44. exf6 {[%emt 0:01:23]} gxf6 {[%emt 0:00:11]} 45. Ra5 {[%emt 0:05:03]} Bd7 {[%emt 0:00:44]} 46. g5 {[%emt 0:03:02]} Be8 {[%emt 0:02:58]} 47. Nc5 {[%emt 0:07:01]} Bc6 {[%emt 0:01:16]} 48. f4 {[%emt 0:01:20]} Ke7 {[%emt 0:07:36]} 49. Kd4 {[%emt 0:01:02]} Be8 {[%emt 0:00:57]} 50. Ne4 {[%emt 0:02:36]} fxg5 {[%emt 0:01:07]} 51. hxg5 {[%emt 0:00:18]} Bg6 {[%emt 0:03:34]} 52. Nf6 {[%emt 0:01:10]} Rb7 {[%emt 0:02:29]} 53. Ra8 {[%emt 0:02:45]} Rb4+ {[%emt 0:06:30]} 54. Kc5 {[%emt 0:00:12]} Rxf4 {[%emt 0:01:21]} 55. Ra7+ {[%emt 0:00:07]} Kf8 {[%emt 0:02:22]} 56. Nxh7+ {[%emt 0:04:25]} Bxh7 {[%emt 0:00:09]} 57. Rxh7 {[%emt 0:00:04]} Rf5+ {[%emt 0:00:07]} 1/2-1/2

[Event "European Womens-ch 2025"]
[Site "Rhodes"]
[Date "2025.04.05"]
[Round "6.24"]
[White "Karacsonyi, Kata"]
[Black "Yao, Lan"]
[Result "1-0"]
[Annotator "ChessBase"]
[ECO "B51"]
[WhiteElo "2198"]
[BlackElo "2294"]
[PlyCount "169"]
[EventDate "2025.03.29"]
[EventType "swiss"]
[EventCountry "GRE"]
[SourceTitle "playchess.com"]
[Source "ChessBase"]
[SourceQuality "1"]
[TimeControl "40/5400+30:1800+30"]

1. e4 {[%emt 0:01:08]} c5 {[%emt 0:00:08]} 2. Nf3 {[%emt 0:00:07]} d6 {[%emt 0:00:08]} 3. Bb5+ {[%emt 0:00:18]} Nd7 {[%emt 0:00:06]} 4. a4 {[%emt 0:00:10]} Ngf6 {[%emt 0:01:58]} 5. Nc3 {[%emt 0:00:08]} g6 {[%emt 0:01:56]} 6. a5 {[%emt 0:01:08]} a6 {[%emt 0:01:00]} 7. Bc4 {[%emt 0:00:34]} Bg7 {[%emt 0:00:08]} 8. Bxf7+ {[%emt 0:00:39]} Kf8 {[%emt 0:22:51]} 9. Ng5 {[%emt 0:23:46]} Ne5 {[%emt 0:00:16]} 10. Ne6+ {[%emt 0:00:12]} Bxe6 {[%emt 0:00:11]} 11. Bxe6 {[%emt 0:00:04]} Nc6 {[%emt 0:00:13]} 12. d3 {[%emt 0:08:22]} Nxa5 {[%emt 0:01:42]} 13. Nd5 {[%emt 0:07:26]} Nc6 {[%emt 0:02:14]} 14. Nf4 {[%emt 0:03:28]} Qe8 {[%emt 0:10:51]} 15. h4 {[%emt 0:10:16]} Nd8 {[%emt 0:09:54]} 16. g4 {[%emt 0:11:16]} Qc6 {[%emt 0:44:54]} 17. g5 {[%emt 0:29:58]} Nd7 {[%emt 0:00:00]} 18. Bd5 {[%emt 0:00:00]} Qb6 {[%emt 0:00:00]} 19. Qg4 {[%emt 0:00:00]} Ke8 {[%emt 0:00:00]} 20. Ne6 {[%emt 0:00:00]} Nxe6 {[%emt 0:00:00]} 21. Qxe6 {[%emt 0:00:00]} Bxb2 {[%emt 0:02:30]} 22. Bxb2 {[%emt 0:02:30]} Qxb2 {[%emt 0:00:30]} 23. O-O {[%emt 0:00:30]} Qe5 {[%emt 0:00:30]} 24. Qxe5 {[%emt 0:00:30]} Nxe5 {[%emt 0:00:30]} 25. Bxb7 {[%emt 0:00:30]} Rb8 {[%emt 0:00:30]} 26. Rxa6 {[%emt 0:00:30]} Nf3+ {[%emt 0:00:30]} 27. Kg2 {[%emt 0:00:30]} Rf8 {[%emt 0:00:30]} 28. Rb1 {[%emt 0:00:30]} Kd8 {[%emt 0:00:30]} 29. Ra8 {[%emt 0:00:30]} Rxa8 {[%emt 0:00:30]} 30. Bxa8 {[%emt 0:00:30]} Kc8 {[%emt 0:00:30]} 31. Kg3 {[%emt 0:00:30]} Nd4 {[%emt 0:00:30]} 32. Rb7 {[%emt 0:00:30]} Rf7 {[%emt 0:00:30]} 33. Rb2 {[%emt 0:00:30]} Ne2+ {[%emt 0:00:30]} 34. Kg2 {[%emt 0:00:30]} Nf4+ {[%emt 0:00:30]} 35. Kg3 {[%emt 0:00:30]} Ne2+ {[%emt 0:00:30]} 36. Kg2 {[%emt 0:00:30]} Nf4+ {[%emt 0:00:30]} 37. Kf1 {[%emt 0:00:30]} Nh3 {[%emt 0:00:30]} 38. c3 {[%emt 0:00:30]} Nf4 {[%emt 0:00:30]} 39. Bb7+ {[%emt 0:00:30]} Kc7 {[%emt 0:00:30]} 40. Ba6 {[%emt 0:00:30]} Kc6 {[%emt 0:00:30]} 41. d4 {[%emt 0:30:30]} cxd4 {[%emt 0:30:30]} 42. cxd4 {[%emt 0:00:30]} e6 {[%emt 0:00:30]} 43. Bb5+ {[%emt 0:00:30]} Kc7 {[%emt 0:00:30]} 44. Rc2+ {[%emt 0:00:30]} Kd8 {[%emt 0:00:30]} 45. f3 {[%emt 0:00:30]} Rb7 {[%emt 0:00:30]} 46. Ba6 {[%emt 0:00:30]} Ra7 {[%emt 0:00:30]} 47. Ra2 {[%emt 0:00:30]} Ke7 {[%emt 0:00:30]} 48. Bc4 {[%emt 0:00:30]} Rc7 {[%emt 0:00:30]} 49. Be2 {[%emt 0:00:30]} e5 {[%emt 0:00:30]} 50. d5 {[%emt 0:00:30]} Rc1+ {[%emt 0:00:30]} 51. Kf2 {[%emt 0:00:30]} Rh1 {[%emt 0:00:30]} 52. Ra7+ {[%emt 0:00:30]} Kf8 {[%emt 0:00:30]} 53. Bf1 {[%emt 0:00:30]} Rxh4 {[%emt 0:00:30]} 54. Rd7 {[%emt 0:00:30]} Rh2+ {[%emt 0:00:30]} 55. Ke1 {[%emt 0:00:30]} Rh5 {[%emt 0:00:30]} 56. Rxd6 {[%emt 0:00:30]} Rxg5 {[%emt 0:00:30]} 57. Rd7 {[%emt 0:00:30]} Rh5 {[%emt 0:00:30]} 58. d6 {[%emt 0:00:30]} Rh1 {[%emt 0:00:30]} 59. Kf2 {[%emt 0:00:30]} Rh2+ {[%emt 0:00:30]} 60. Ke3 {[%emt 0:00:30]} Rb2 {[%emt 0:00:30]} 61. Rd8+ {[%emt 0:00:30]} Kg7 {[%emt 0:00:30]} 62. d7 {[%emt 0:00:30]} Rb3+ {[%emt 0:00:30]} 63. Kd2 {[%emt 0:00:30]} Ne6 {[%emt 0:00:30]} 64. Re8 {[%emt 0:00:30]} Rb4 {[%emt 0:00:30]} 65. Rxe6 {[%emt 0:00:30]} Rd4+ {[%emt 0:00:30]} 66. Ke3 {[%emt 0:00:30]} Rxd7 {[%emt 0:00:30]} 67. Rxe5 {[%emt 0:00:30]} Kf6 {[%emt 0:00:30]} 68. Rd5 {[%emt 0:00:30]} Ra7 {[%emt 0:00:30]} 69. Kf4 {[%emt 0:00:30]} h6 {[%emt 0:00:30]} 70. Rd6+ {[%emt 0:00:30]} Kg7 {[%emt 0:00:30]} 71. Bh3 {[%emt 0:00:30]} Ra5 {[%emt 0:00:30]} 72. Rd7+ {[%emt 0:00:30]} Kf8 {[%emt 0:00:30]} 73. Rh7 {[%emt 0:00:30]} Kg8 {[%emt 0:00:30]} 74. Rd7 {[%emt 0:00:30]} Kf8 {[%emt 0:00:30]} 75. e5 {[%emt 0:00:30]} Ra4+ {[%emt 0:00:30]} 76. Kg3 {[%emt 0:00:30]} h5 {[%emt 0:00:30]} 77. Be6 {[%emt 0:00:30]} g5 {[%emt 0:00:30]} 78. Rf7+ {[%emt 0:00:30]} Ke8 {[%emt 0:00:30]} 79. Bd7+ {[%emt 0:00:30]} Kxf7 {[%emt 0:00:30]} 80. Bxa4 {[%emt 0:00:30]} Ke6 {[%emt 0:00:30]} 81. f4 {[%emt 0:00:30]} h4+ {[%emt 0:00:30]} 82. Kg4 {[%emt 0:00:30]} gxf4 {[%emt 0:00:30]} 83. Kxf4 {[%emt 0:00:30]} h3 {[%emt 0:00:30]} 84. Bb3+ {[%emt 0:00:30]} Ke7 {[%emt 0:00:30]} 85. Ke4 {[%emt 0:00:30]} 1-0

[Event "European Womens-ch 2025"]
[Site "Rhodes"]
[Date "2025.04.05"]
[Round "6.25"]
[White "Terbe, Zsuzsanna"]
[Black "Doluhanova, Evgeniya"]
[Result "1/2-1/2"]
[Annotator "ChessBase"]
[ECO "E48"]
[WhiteElo "2179"]
[BlackElo "2287"]
[PlyCount "37"]
[EventDate "2025.03.29"]
[EventType "swiss"]
[EventCountry "GRE"]
[SourceTitle "playchess.com"]
[Source "ChessBase"]
[SourceQuality "1"]
[TimeControl "40/5400+30:1800+30"]

1. d4 {[%emt 0:01:00]} Nf6 {[%emt 0:00:02]} 2. c4 {[%emt 0:00:14]} e6 {[%emt 0:00:10]} 3. Nc3 {[%emt 0:00:21]} Bb4 {[%emt 0:00:06]} 4. e3 {[%emt 0:00:29]} O-O {[%emt 0:00:05]} 5. Bd3 {[%emt 0:00:08]} Re8 {[%emt 0:00:05]} 6. Nge2 {[%emt 0:01:43]} d5 {[%emt 0:01:22]} 7. cxd5 {[%emt 0:01:17]} exd5 {[%emt 0:00:17]} 8. Qc2 {[%emt 0:03:57]} c6 {[%emt 0:06:08]} 9. O-O {[%emt 0:01:16]} Nbd7 {[%emt 0:00:55]} 10. Bd2 {[%emt 0:01:56]} Nf8 {[%emt 0:01:20]} 11. f3 {[%emt 0:03:15]} Ng6 {[%emt 0:06:04]} 12. Rae1 {[%emt 0:05:32]} Bd6 {[%emt 0:05:58]} 13. Ng3 {[%emt 0:10:56]} Bxg3 {[%emt 0:16:28]} 14. hxg3 {[%emt 0:00:13]} Qd6 {[%emt 0:00:41]} 15. Ne2 {[%emt 0:02:09]} Bd7 {[%emt 0:01:32]} 16. b4 {[%emt 0:08:41]} b6 {[%emt 0:00:39]} 17. e4 {[%emt 0:10:14]} dxe4 {[%emt 0:14:57]} 18. fxe4 {[%emt 0:00:29]} Qe7 {[%emt 0:01:27]} 19. Bg5 {[%emt 0:15:52]} 1/2-1/2

[Event "European Womens-ch 2025"]
[Site "Rhodes"]
[Date "2025.04.05"]
[Round "6.26"]
[White "Mkrtchyan, Mariam"]
[Black "Prado Acebo, Ines"]
[Result "1/2-1/2"]
[Annotator "ChessBase"]
[ECO "D37"]
[WhiteElo "2282"]
[BlackElo "2199"]
[PlyCount "114"]
[EventDate "2025.03.29"]
[EventType "swiss"]
[EventCountry "GRE"]
[SourceTitle "playchess.com"]
[Source "ChessBase"]
[SourceQuality "1"]
[TimeControl "40/5400+30:1800+30"]

1. d4 {[%emt 0:00:02]} d5 {[%emt 0:00:12]} 2. c4 {[%emt 0:00:05]} e6 {[%emt 0:00:08]} 3. Nc3 {[%emt 0:00:25]} Nf6 {[%emt 0:00:11]} 4. Nf3 {[%emt 0:00:04]} Nbd7 {[%emt 0:00:12]} 5. Bf4 {[%emt 0:00:48]} Bb4 {[%emt 0:00:19]} 6. cxd5 {[%emt 0:07:51]} Nxd5 {[%emt 0:00:10]} 7. Bd2 {[%emt 0:00:26]} N5f6 {[%emt 0:00:14]} 8. a3 {[%emt 0:05:28]} Bxc3 {[%emt 0:00:25]} 9. Bxc3 {[%emt 0:00:08]} b6 {[%emt 0:06:14]} 10. e3 {[%emt 0:06:55]} Bb7 {[%emt 0:05:19]} 11. Be2 {[%emt 0:00:05]} O-O {[%emt 0:02:14]} 12. O-O {[%emt 0:00:26]} Ne4 {[%emt 0:03:12]} 13. Rc1 {[%emt 0:00:13]} Nxc3 {[%emt 0:08:56]} 14. Rxc3 {[%emt 0:00:15]} c5 {[%emt 0:00:13]} 15. dxc5 {[%emt 0:07:53]} Nxc5 {[%emt 0:00:08]} 16. b4 {[%emt 0:00:08]} Ne4 {[%emt 0:01:01]} 17. Qxd8 {[%emt 0:00:28]} Rfxd8 {[%emt 0:00:34]} 18. Rc7 {[%emt 0:00:05]} Nd6 {[%emt 0:13:02]} 19. Rd1 {[%emt 0:07:03]} Bd5 {[%emt 0:01:43]} 20. h3 {[%emt 0:21:55]} Ne8 {[%emt 0:12:38]} 21. Rcc1 {[%emt 0:03:24]} Bb7 {[%emt 0:08:08]} 22. Ne5 {[%emt 0:06:07]} Kf8 {[%emt 0:11:08]} 23. Bb5 {[%emt 0:13:12]} f6 {[%emt 0:06:48]} 24. Bc6 {[%emt 0:00:51]} Bxc6 {[%emt 0:03:40]} 25. Nxc6 {[%emt 0:00:53]} Rxd1+ {[%emt 0:00:37]} 26. Rxd1 {[%emt 0:00:04]} a6 {[%emt 0:01:20]} 27. Rd7 {[%emt 0:02:27]} Rc8 {[%emt 0:05:05]} 28. Nd4 {[%emt 0:06:12]} Rc1+ {[%emt 0:00:14]} 29. Kh2 {[%emt 0:00:08]} e5 {[%emt 0:00:10]} 30. Ne6+ {[%emt 0:01:15]} Kg8 {[%emt 0:00:07]} 31. Re7 {[%emt 0:01:51]} Rc8 {[%emt 0:00:21]} 32. f4 {[%emt 0:01:24]} exf4 {[%emt 0:00:57]} 33. exf4 {[%emt 0:00:03]} g6 {[%emt 0:03:11]} 34. Ra7 {[%emt 0:01:47]} Rc6 {[%emt 0:00:46]} 35. f5 {[%emt 0:00:07]} gxf5 {[%emt 0:03:19]} 36. Nd4 {[%emt 0:00:35]} Rc4 {[%emt 0:01:02]} 37. Nxf5 {[%emt 0:00:07]} Nc7 {[%emt 0:00:21]} 38. Rb7 {[%emt 0:00:06]} Rc3 {[%emt 0:02:03]} 39. Rxb6 {[%emt 0:06:26]} Rxa3 {[%emt 0:00:16]} 40. Rb8+ {[%emt 0:00:00]} Kf7 {[%emt 0:00:00]} 41. Nd6+ {[%emt 0:05:52]} Ke6 {[%emt 0:03:39]} 42. Ne4 {[%emt 0:00:05]} Nd5 {[%emt 0:03:32]} 43. Rb7 {[%emt 0:01:42]} Ra2 {[%emt 0:04:15]} 44. Rxh7 {[%emt 0:08:11]} Nxb4 {[%emt 0:02:32]} 45. h4 {[%emt 0:00:32]} Kf5 {[%emt 0:06:23]} 46. Ng3+ {[%emt 0:04:17]} Kg6 {[%emt 0:02:15]} 47. Rd7 {[%emt 0:00:06]} Ra5 {[%emt 0:02:54]} 48. h5+ {[%emt 0:00:52]} Kh6 {[%emt 0:00:39]} 49. Rd6 {[%emt 0:06:03]} Nd5 {[%emt 0:01:16]} 50. Ne4 {[%emt 0:00:25]} Ra4 {[%emt 0:01:25]} 51. Ng3 {[%emt 0:01:07]} Ra5 {[%emt 0:00:20]} 52. Kh3 {[%emt 0:03:23]} Nf4+ {[%emt 0:02:06]} 53. Kg4 {[%emt 0:00:34]} Nxh5 {[%emt 0:00:07]} 54. Nxh5 {[%emt 0:02:04]} Rg5+ {[%emt 0:00:06]} 55. Kf3 {[%emt 0:01:43]} Kxh5 {[%emt 0:01:03]} 56. Rxa6 {[%emt 0:00:13]} Kg6 {[%emt 0:00:09]} 57. Rb6 {[%emt 0:00:04]} Ra5 {[%emt 0:00:10]} 1/2-1/2

[Event "European Womens-ch 2025"]
[Site "Rhodes"]
[Date "2025.04.05"]
[Round "6.27"]
[White "Avramidou, Anastasia"]
[Black "Rodshtein, Tereza"]
[Result "1/2-1/2"]
[Annotator "ChessBase"]
[ECO "C54"]
[WhiteElo "2275"]
[BlackElo "2171"]
[PlyCount "160"]
[EventDate "2025.03.29"]
[EventType "swiss"]
[EventCountry "GRE"]
[SourceTitle "playchess.com"]
[Source "ChessBase"]
[SourceQuality "1"]
[TimeControl "40/5400+30:1800+30"]

1. e4 {[%emt 0:00:04]} e5 {[%emt 0:00:09]} 2. Nf3 {[%emt 0:00:13]} Nc6 {[%emt 0:00:09]} 3. Bc4 {[%emt 0:00:09]} Nf6 {[%emt 0:00:39]} 4. d3 {[%emt 0:00:13]} Bc5 {[%emt 0:00:41]} 5. Bg5 {[%emt 0:00:23]} h6 {[%emt 0:04:36]} 6. Bh4 {[%emt 0:00:14]} g5 {[%emt 0:03:18]} 7. Bg3 {[%emt 0:00:11]} d6 {[%emt 0:00:56]} 8. c3 {[%emt 0:00:23]} a6 {[%emt 0:02:32]} 9. Nbd2 {[%emt 0:00:19]} Ba7 {[%emt 0:06:45]} 10. a4 {[%emt 0:00:15]} O-O {[%emt 0:17:04]} 11. O-O {[%emt 0:04:24]} Qe7 {[%emt 0:04:33]} 12. b4 {[%emt 0:11:46]} Be6 {[%emt 0:10:16]} 13. b5 {[%emt 0:14:59]} Bxc4 {[%emt 0:00:34]} 14. Nxc4 {[%emt 0:00:47]} Nb8 {[%emt 0:01:08]} 15. b6 {[%emt 0:12:47]} Bxb6 {[%emt 0:00:11]} 16. Nxb6 {[%emt 0:03:31]} cxb6 {[%emt 0:00:07]} 17. Nd2 {[%emt 0:00:34]} Nbd7 {[%emt 0:12:22]} 18. Nc4 {[%emt 0:02:22]} Qe6 {[%emt 0:01:36]} 19. Ne3 {[%emt 0:04:55]} Kh7 {[%emt 0:01:28]} 20. c4 {[%emt 0:07:10]} Ne8 {[%emt 0:02:39]} 21. Rb1 {[%emt 0:02:17]} Rc8 {[%emt 0:00:24]} 22. Nd5 {[%emt 0:03:41]} Rc6 {[%emt 0:08:08]} 23. f3 {[%emt 0:03:16]} Ng7 {[%emt 0:00:13]} 24. Bf2 {[%emt 0:01:07]} f5 {[%emt 0:01:16]} 25. Nxb6 {[%emt 0:10:07]} Nxb6 {[%emt 0:00:07]} 26. Bxb6 {[%emt 0:00:11]} Qc8 {[%emt 0:00:31]} 27. a5 {[%emt 0:02:33]} Ne6 {[%emt 0:00:48]} 28. Rb2 {[%emt 0:01:50]} Nc5 {[%emt 0:03:05]} 29. exf5 {[%emt 0:02:24]} Rxf5 {[%emt 0:00:19]} 30. d4 {[%emt 0:00:35]} exd4 {[%emt 0:01:04]} 31. Qxd4 {[%emt 0:00:34]} Rf7 {[%emt 0:05:31]} 32. Re1 {[%emt 0:03:32]} Qf5 {[%emt 0:06:01]} 33. Re8 {[%emt 0:02:26]} Rg7 {[%emt 0:00:10]} 34. g4 {[%emt 0:03:53]} Qf4 {[%emt 0:03:52]} 35. Bxc5 {[%emt 0:01:14]} dxc5 {[%emt 0:00:25]} 36. Qd3+ {[%emt 0:01:37]} Rcg6 {[%emt 0:00:08]} 37. Rd2 {[%emt 0:00:38]} Qd4+ {[%emt 0:02:37]} 38. Qxd4 {[%emt 0:00:05]} cxd4 {[%emt 0:00:03]} 39. Rxd4 {[%emt 0:00:06]} Rc6 {[%emt 0:00:12]} 40. Red8 {[%emt 0:00:00]} Rc5 {[%emt 0:00:00]} 41. R8d5 {[%emt 0:05:22]} Rgc7 {[%emt 0:07:24]} 42. Rd7+ {[%emt 0:07:01]} Rxd7 {[%emt 0:03:02]} 43. Rxd7+ {[%emt 0:00:06]} Kg6 {[%emt 0:03:10]} 44. Rxb7 {[%emt 0:00:40]} Rxa5 {[%emt 0:00:08]} 45. Rb6+ {[%emt 0:03:25]} Kg7 {[%emt 0:01:37]} 46. Kf2 {[%emt 0:00:04]} Ra4 {[%emt 0:04:33]} 47. Rc6 {[%emt 0:06:07]} Ra3 {[%emt 0:00:45]} 48. Kg3 {[%emt 0:01:11]} a5 {[%emt 0:00:16]} 49. Ra6 {[%emt 0:03:31]} Rc3 {[%emt 0:00:38]} 50. h4 {[%emt 0:00:47]} Rxc4 {[%emt 0:01:27]} 51. Rxa5 {[%emt 0:00:05]} Kg6 {[%emt 0:00:28]} 52. Ra6+ {[%emt 0:02:30]} Kg7 {[%emt 0:00:11]} 53. Ra7+ {[%emt 0:00:11]} Kf6 {[%emt 0:01:40]} 54. h5 {[%emt 0:00:06]} Rc6 {[%emt 0:00:28]} 55. Rh7 {[%emt 0:00:53]} Ke5 {[%emt 0:00:13]} 56. Rf7 {[%emt 0:00:40]} Rf6 {[%emt 0:02:02]} 57. Re7+ {[%emt 0:00:21]} Re6 {[%emt 0:00:29]} 58. Rg7 {[%emt 0:01:49]} Ra6 {[%emt 0:00:36]} 59. Rb7 {[%emt 0:01:27]} Re6 {[%emt 0:02:48]} 60. Rb3 {[%emt 0:02:20]} Rd6 {[%emt 0:00:34]} 61. Kf2 {[%emt 0:00:50]} Re6 {[%emt 0:01:58]} 62. Rb7 {[%emt 0:00:36]} Ra6 {[%emt 0:01:00]} 63. Rf7 {[%emt 0:00:18]} Rf6 {[%emt 0:00:18]} 64. Re7+ {[%emt 0:00:56]} Re6 {[%emt 0:00:04]} 65. Rxe6+ {[%emt 0:02:05]} Kxe6 {[%emt 0:00:02]} 66. Ke2 {[%emt 0:00:12]} Ke5 {[%emt 0:01:27]} 67. Ke3 {[%emt 0:00:02]} Kd5 {[%emt 0:00:02]} 68. Kf2 {[%emt 0:01:59]} Ke5 {[%emt 0:00:10]} 69. Kg3 {[%emt 0:00:26]} Ke6 {[%emt 0:00:26]} 70. Kg2 {[%emt 0:00:37]} Kf6 {[%emt 0:00:16]} 71. Kf1 {[%emt 0:00:20]} Ke5 {[%emt 0:00:18]} 72. Ke1 {[%emt 0:00:13]} Kf4 {[%emt 0:00:26]} 73. Ke2 {[%emt 0:00:33]} Ke5 {[%emt 0:00:15]} 74. Ke3 {[%emt 0:00:04]} Kd5 {[%emt 0:00:06]} 75. f4 {[%emt 0:00:05]} gxf4+ {[%emt 0:00:04]} 76. Kxf4 {[%emt 0:00:05]} Ke6 {[%emt 0:00:06]} 77. g5 {[%emt 0:00:11]} hxg5+ {[%emt 0:00:04]} 78. Kxg5 {[%emt 0:00:05]} Kf7 {[%emt 0:00:05]} 79. h6 {[%emt 0:00:03]} Kg8 {[%emt 0:00:07]} 80. h7+ {[%emt 0:00:05]} Kxh7 {[%emt 0:14:10]} 1/2-1/2